Cogmind - Beta 13 @@@ ROGUE MODE // 2024.07.10 @ 21:34:34 Player: OmnomBrains Result: Destroyed by D-53 Grenadier with Mini Grenade Launcher Performance ------------- Evolutions (1) 500 Regions Visited (3) 600 Robots Destroyed (37) 185 Value Destroyed (1012) 1012 Prototype IDs (3) 60 Alien Tech Used (0) 0 Bonus (0) 0 TOTAL SCORE: 2357 Bonus ------- None Cogmind --------- Core Integrity 0/400 Matter 136/300 Energy 28/100 System Corruption 0% Temperature Cool (0) Movement Core (250) Ox4 Location -9/Mines Parts ------- > --- POWER (1) -------- (None) > --- PROPULSION (2) --- (None) > --- UTILITY (4) ------ Medium Storage Unit > --- WEAPON (2) ------- Beam Rifle > --- INVENTORY (10) --- EM Shotgun Improved Medium Laser EM Pulse Cannon Improved Light Cannon Peak State ------------ > --- POWER ------------ Improved Ion Engine > --- PROPULSION ------- Aluminum Leg Improved Aluminum Leg > --- UTILITY ---------- Heat Sink Improved Heat Sink Medium Storage Unit Reaction Control System > --- WEAPON ----------- Improved Light Cannon Improved Light Cannon > --- INVENTORY -------- Ion Engine Light Nuclear Core Light Treads Light Treads Reaction Control System EM Shotgun Particle Gun Improved Medium Laser EM Pulse Cannon Assault Rifle [Rating: 19] Favorites ----------- Power Light Ion Engine Engine Light Ion Engine Propulsion Aluminum Leg Leg Aluminum Leg Utility Medium Storage Unit Device Heat Sink Storage Medium Storage Unit Protection Light Armor Plating Weapon Improved Light Cannon Energy Gun Small Laser Energy Cannon EM Pulse Cannon Ballistic Gun Assault Rifle Ballistic Cannon Improved Light Cannon Launcher Mini Grenade Launcher Build | -11 -10 -9 -9 ------- Run | Yrd Mat Mat Min Slots Evolved 2 | . . 2 . Power . | . . . . Propulsion . | . . . . Utility 2 | . . 2 . Weapon . | . . . . Parts Attached 39 | 7 5 19 8 Power 5 | 1 . 3 1 Engine 5 | 1 . 3 1 Core . | . . . . Reactor . | . . . . Propulsion 10 | 2 3 4 1 Treads . | . . . . Leg 10 | 2 3 4 1 Wheel . | . . . . Hover . | . . . . Flight . | . . . . Utility 13 | 2 . 9 2 Device 8 | 1 . 6 1 Storage 2 | 1 . 1 . Processor . | . . . . Hackware . | . . . . Protection 3 | . . 2 1 Artifact . | . . . . Weapon 11 | 2 2 3 4 Energy Gun 5 | 1 2 1 1 Energy Cannon 1 | . . . 1 Ballistic Gun 2 | 1 . . 1 Ballistic Cannon 2 | . . 2 . Launcher 1 | . . . 1 Special Weapon . | . . . . Impact Weapon . | . . . . Slashing Weapon . | . . . . Piercing Weapon . | . . . . Special Melee Weapon . | . . . . Unidentified Prototypes 1 | . . 1 . Parts Lost 15 | . 1 2 12 Power 2 | . . . 2 Propulsion 3 | . . . 3 Utility 8 | . 1 2 5 Weapon 2 | . . . 2 Highest Loss Streak 12 | . 1 1 12 To Critical Strikes . | . . . . Average Slot Usage (%) 93 | . 98 93 73 Engine 11 | . 14 11 6 Leg 23 | . 28 22 11 Device 18 | . 12 20 17 Storage 11 | . 14 11 11 Protection 4 | . . 5 8 Energy Gun 5 | . 14 2 2 Ballistic Gun 5 | . 14 2 . Ballistic Cannon 12 | . . 16 8 Naked Turns . | . . . . Heaviest Build 30 | 12 14 30 30 Greatest Support 26 | 20 20 26 26 Greatest Overweight (x) 4 | . . 1 4 Average Overweight (x) . | . . . 2 Largest Inventory Capacity 10 | 8 8 10 10 Average Capacity 9 | 7 8 9 10 Most Carried 10 | 6 8 10 10 Average Carried 8 | 3 6 9 7 Final Capacity 10 | 8 8 10 10 Final Carried 10 | 4 8 10 4 Class Distribution -------------------- 54% | Mutant 45% | Scavenger-Mutant Dominant Class ---------------- Mutant | -10/Materials Scavenger-Mutant | -9/Materials Scavenger-Mutant | -9/Mines Resources | -11 -10 -9 -9 ----------- Run | Yrd Mat Mat Min Matter Collected 1003 | 306 140 507 50 Remotely . | . . . . Salvage Created 1215 | 153 370 598 94 Parts 74 | 10 22 38 4 Haulers Intercepted 2 | . 1 1 . Recyclers Shooed 3 | . 2 1 . Parts Field Recycled . | . . . . Retrieved Matter . | . . . . Parts Self-Destructed . | . . . . Prevented . | . . . . Kills | -11 -10 -9 -9 ------- Run | Yrd Mat Mat Min Combat Hostiles Destroyed 30 | . 7 17 6 Guns 9 | . 7 2 . Cannons 17 | . . 15 2 AOE 4 | . . . 4 Classes Destroyed 10 | 2 3 3 2 Tunneler 3 | 3 . . . Hauler 2 | . 1 1 . Recycler 2 | 1 . 1 . Watcher 4 | . 2 2 . Swarmer 4 | . . 4 . Grunt 15 | . 7 7 1 Brawler 1 | . . . 1 Duelist 1 | . . 1 . Sentry 5 | . . 5 . Assembled 4 | . . . 4 Best Kill Streak 6 | 2 3 4 6 Combat Bots Only 6 | . 2 4 6 Max Kills in Single Turn 3 | 1 1 1 3 Gunslinging . | . . . . Exploded 3 | . . . 3 Melee . | . . . . Uniques/NPCs Destroyed . | . . . . Combat | -11 -10 -9 -9 -------- Run | Yrd Mat Mat Min Hostile Shots Fired 216 | . 37 102 77 Missed 61 | . 13 30 18 Damage Taken 2295 | . 300 795 1200 Core 460 | . 54 95 311 Absorbed by Shields . | . . . . Regen/Repaired (Parts) 19 | . . 19 . Core Remaining (%) 89 | 100 78 . . Volleys Fired 117 | 12 36 63 6 Largest 2 | 2 2 2 2 Hottest 93 | 60 85 78 93 Shots Fired 233 | 24 72 126 11 Gun 120 | 24 72 24 . Cannon 109 | . . 102 7 Launcher 4 | . . . 4 Special . | . . . . Kinetic 168 | 12 36 114 6 Thermal 60 | 12 36 12 . Explosive 4 | . . . 4 Electromagnetic 1 | . . . 1 Robot Hit Streak 9 | 5 9 7 4 Robot Miss Streak 7 | 2 7 5 1 Penetration Max . | . . . . Secondary Targets 1 | . 1 . . Max Gunslinging Chain 1 | . 1 . . Shots Hit Robots 119 | 16 44 56 3 Core Hits 64 | 4 18 25 17 Critical Kills . | . . . . Critical Parts Destroyed . | . . . . Critical Strikes 2 | . . 2 . Blast 2 | . . 2 . Melee Attacks . | . . . . Impact . | . . . . Slashing . | . . . . Piercing . | . . . . Sneak Attacks . | . . . . Combat Hostiles . | . . . . Follow-up Attacks . | . . . . Damage Inflicted 2619 | 191 566 1264 598 Guns 927 | 191 566 170 . Cannons 1081 | . . 1017 64 Explosions 611 | . . 77 534 Melee . | . . . . Ramming . | . . . . Kinetic 1619 | 123 327 1105 64 Thermal 466 | 68 239 159 . Explosive 534 | . . . 534 Electromagnetic . | . . . . Impact . | . . . . Slashing . | . . . . Piercing . | . . . . Highest Corruption . | . . . . Average Corruption . | . . . . Corruption Purged . | . . . . Corruption Blocked . | . . . . Overload Shots . | . . . . Overflow Damage 54 | . . 18 36 Projectiles 16 | . . 16 . Explosions 38 | . . 2 36 Melee . | . . . . Knockbacks 6 | . . 5 1 Impact . | . . . . Kinetic 6 | . . 5 1 Secondary . | . . . . Self-Inflicted Damage 78 | . . . 78 Shots 2 | . . . 2 Rammed . | . . . . Targets Rammed . | . . . . Kicked . | . . . . Crushed . | . . . . Highest Temperature 120 | . 120 6 2 Average Temperature 41 | . 43 4 1 Received Heat Transfer 354 | . 168 186 . Siege Activations . | . . . . Robots Corrupted . | . . . . Combat Hostiles . | . . . . Parts Fried . | . . . . Impact Corruptions . | . . . . Robots Melted . | . . . . Combat Hostiles . | . . . . Parts Melted . | . . . . Heat Transferred 922 | 150 537 235 . Parts Sabotaged . | . . . . Parts Stolen . | . . . . Parts Stripped . | . . . . Power Chain Reactions . | . . . . Alert | -11 -10 -9 -9 ------- Run | Yrd Mat Mat Min Peak Influence 234 | 20 209 234 104 Initial 47 | . 13 3 47 Average 97 | 11 128 99 64 Maximum Alert Level 1 | . 1 1 . Low Security (%) 93 | 100 91 92 100 Level 1 6 | . 8 7 . Level 2 . | . . . . Level 3 . | . . . . Level 4 . | . . . . Level 5 . | . . . . High Security . | . . . . Max Security . | . . . . Squads Dispatched 3 | . 2 1 . Investigation 2 | . 1 1 . Extermination . | . . . . Reinforcement 1 | . 1 . . Assault . | . . . . Garrison . | . . . . Intercept . | . . . . Searches Triggered . | . . . . Construction Impeded . | . . . . Haulers Reinforced . | . . . . Active Scanning Responses . | . . . . Cargo Convoy Interrupts . | . . . . Stealth | -11 -10 -9 -9 --------- Run | Yrd Mat Mat Min Distress Signals 3 | . 1 2 . Communications Jammed . | . . . . Distress Signals . | . . . . Times Spotted 55 | . 11 23 21 Peak Tracking Total 17 | . 3 4 17 Tactical Retreats 1 | . . . 1 Traps | -11 -10 -9 -9 ------- Run | Yrd Mat Mat Min Traps Triggered 1 | . 1 . . Indirectly . | . . . . Trap Hack Attempts . | . . . . Triggered . | . . . . Disarmed . | . . . . Reprogrammed . | . . . . Reused . | . . . . Traps Extracted . | . . . . Installed . | . . . . Triggered . | . . . . Machines | -11 -10 -9 -9 ---------- Run | Yrd Mat Mat Min Machines Disabled 4 | . . 4 . Max in Single Turn 1 | . . 1 . Machines Repaired . | . . . . Machines Dismantled . | . . . . Machines Sabotaged . | . . . . Overloaded Fab Kills . | . . . . Hacking | -11 -10 -9 -9 --------- Run | Yrd Mat Mat Min Machines Accessed 6 | . . 6 . Terminals 4 | . . 4 . Fabricators . | . . . . Repair Stations 1 | . . 1 . Recycling Units . | . . . . Scanalyzers 1 | . . 1 . Garrison Access . | . . . . Total Hacks 20 | . . 20 . Successful 15 | . . 15 . Failed 5 | . . 5 . Catastrophic . | . . . . Database Lockouts . | . . . . Manual 6 | . . 6 . Terminals 11 | . . 11 . Fabricators . | . . . . Repair Stations 2 | . . 2 . Recycling Units . | . . . . Scanalyzers 7 | . . 7 . Garrison Access . | . . . . Terminal Hacks 6 | . . 6 . Prototype ID Bank 1 | . . 1 . Emergency Access Points 1 | . . 1 . Alert Level 1 | . . 1 . Locate Traps 1 | . . 1 . Recall Investigation 1 | . . 1 . Zone Layout 1 | . . 1 . Fabricator Hacks . | . . . . Repair Station Hacks 2 | . . 2 . Scan Component 1 | . . 1 . Repair 1 | . . 1 . Recycling Unit Hacks . | . . . . Scanalyzer 7 | . . 7 . Insert Component 3 | . . 3 . Analyze 4 | . . 4 . Garrison Access Hacks . | . . . . Unauthorized Hacks . | . . . . Terminals . | . . . . Fabricators . | . . . . Repair Stations . | . . . . Recycling Units . | . . . . Scanalyzers . | . . . . Garrison Access . | . . . . Data Cores Recovered . | . . . . Used . | . . . . Hacking Detections 6 | . . 6 . Full Trace Events 2 | . . 2 . Feedback Events . | . . . . Feedback Blocked . | . . . . Robot Schematics Acquired . | . . . . Robots Built . | . . . . Authchips . | . . . . Time . | . . . . Total Robot Build Rating . | . . . . Part Schematics Acquired 3 | . . 3 . Parts Built . | . . . . Authchips . | . . . . Time . | . . . . Total Part Build Rating . | . . . . Parts Repaired 1 | . . 1 . Time 38 | . . 38 . Parts Recycled . | . . . . Recycled Matter . | . . . . Retrieved Matter . | . . . . Retrieved Components . | . . . . Parts Scanalyzed 3 | . . 3 . Part Schematics Acquired 3 | . . 3 . Parts Damaged . | . . . . Bothacking | -11 -10 -9 -9 ------------ Run | Yrd Mat Mat Min Used RIF Installer . | . . . . Robots Hacked . | . . . . Non-combat . | . . . . Combat . | . . . . Robot Hacks Applied . | . . . . Relay Couplers Released . | . . . . Fabnet Peak Effective % . | . . . . Robots Rewired . | . . . . Allies Hacked . | . . . . Hacks Repelled . | . . . . Allies | -11 -10 -9 -9 -------- Run | Yrd Mat Mat Min Total Allies . | . . . . Largest Group . | . . . . Highest-Rated Group . | . . . . Highest-Rated Ally . | . . . . Total Orders . | . . . . Ally Attacks . | . . . . Total Damage . | . . . . Kills . | . . . . Allies Corrupted . | . . . . Allies Melted . | . . . . Intel | -11 -10 -9 -9 ------- Run | Yrd Mat Mat Min Robot Analysis Total . | . . . . Derelict Logs Recovered . | . . . . Drone Launches . | . . . . Drone Recoveries . | . . . . Exploration | -11 -10 -9 -9 ------------- Run | Yrd Mat Mat Min Turns Passed 1902 | 157 416 1284 45 Spaces Moved 979 | 93 245 633 8 Core 14 | 10 . . 4 Treads . | . . . . Legs 965 | 83 245 633 4 Wheels . | . . . . Hover . | . . . . Flight . | . . . . Fastest Speed 50 | 50 120 120 190 Average Speed 147 | 112 120 162 216 Slowest Speed 260 | 120 120 190 260 Overloaded Moves . | . . . . Propulsion Burnouts . | . . . . Robots Hopped . | . . . . Cave-ins Triggered . | . . . . Exploration Rate (%) 20 | 5 29 38 9 Regions Visited 3 Branch Regions 1 Pre-discovered Areas . | . . . . Known Exits Taken . | . . . . Unknown Exits Taken 3 | 1 1 1 . Scrap Searched . | . . . . Spaces Dug 10 | . . 2 8 Terrain Destroyed 73 | . . 39 34 Melee . | . . . . Projectile 10 | . . 10 . AOE 63 | . . 29 34 Terrain Rammed . | . . . . Walls Destroyed . | . . . . Machines Disabled . | . . . . Actions | -11 -10 -9 -9 --------- Run | Yrd Mat Mat Min Total 1205 | 121 296 764 24 Wait 19 | . 2 15 2 Move 976 | 92 244 632 8 Hop . | . . . . Pick Up 33 | 10 5 18 . Fast Attach 4 | 1 . 3 . Attach 18 | 6 . 6 6 Detach . | . . . . Swap 17 | . 5 10 2 Drop 21 | . 4 17 . Fire 117 | 12 36 63 6 Melee . | . . . . Ram . | . . . . Kick . | . . . . Crush . | . . . . Escape Stasis . | . . . . Rewire . | . . . . Trap . | . . . . Miscellaneous . | . . . . Route ------- -11/Scrapyard -10/Materials -9/Materials -9/Mines History --------- Turn | Location | Event 25 | -11/Scrapyard | Discovered new exit (range 15) 158 | -11/Scrapyard | Entered Materials 311 | -10/Materials | Build established: Mutant 557 | -10/Materials | Discovered new exit (range 6) 574 | -10/Materials | Entered another Materials area 574 | -9/Materials | Evolved 2 slots: Utility x2 647 | -9/Materials | Repaired Imp. Heat Sink 1327 | -9/Materials | Build established: Scavenger-Mutant 1551 | -9/Materials | Discovered new exit (range 12) 1858 | -9/Materials | Entered Mines 1859 | -9/Mines | Assembled infested the area 1891 | -9/Mines | Core integrity fell below 50% 1899 | -9/Mines | Core integrity fell below 20% 1903 | -9/Mines | Destroyed by D-53 Grenadier with Mini Grenade Launcher Last Messages --------------- The unstable cave ceiling collapses. as-84896 destroyed. Destroyed Flight Unit. as-50048 destroyed. Ion Engine destroyed. Med. Armor Plating destroyed. Aluminum Leg destroyed. Reaction Control System destroyed. Mni. Grenade Launcher destroyed. Hvy. Assault Rifle severed. as-05847 destroyed. as-63431 destroyed. as-16459 destroyed. S-10 Pest destroyed. as-25958 destroyed. The unstable cave ceiling collapses. Heat Sink destroyed. S-10 Pest destroyed. as-84008 destroyed. as-91450 destroyed. Map ----- +----------------------------------------------------+ | ?????????????????????????????????????????????????? | | ?????????????????????????????????????????????????? | | ?????????????????????????????????????????????????? | | ?????????????????????????????????????????????????? | | ?????????????????????????????????????????????????? | | ?????????????????????????????????????????????????? | | ?????????????????????????????????????????????????? | | ?????????????????????????????????????????????????? | | ?????????????????????????????????????????????????? | | ?????????????????????????????????????????????????? | | ?????????????????????????????????????????????????? | | ?????????????????????????????????????????????????? | | ?????????????????????????????????????????????????? | | ???????????????? ????????????????????????????????? | | ???????????????? ????????????????????????????????? | | ???????????????## ??????????????????????????????? | | ???????????????? ?????????????????????????????? | | ???????????????## ?????????????????????????????? | | ??????????????## #????????????????????????????? | | ?????????????## % ##??????????????????????????? | | ????????????## ########??????????????????? | | ???????????## = #??????????????????? | | ???????????=a%= #??????????????????? | | ?????????????# # #??????????????????? | | ?????????????## ##?????????????????? | | ?????????????# d @ #?????????????????? | | ??????????????# d ##?????????????????? | | ??????????????## #?????????????????? | | ??????????????# [ = #?????????????????? | | ????????????# # = #?????????????????? | | ???????????# ?## ##?????????????????? | | ???????????? ????##### #####??????????????????? | | ???????????? ??????????###??????????????????????? | | ?????????????????????????????????????????????????? | | ?????????????????????????????????????????????????? | | ?????????????????????????????????????????????????? | | ?????????????????????????????????????????????????? | | ?????????????????????????????????????????????????? | | ?????????????????????????????????????????????????? | | ?????????????????????????????????????????????????? | | ?????????????????????????????????????????????????? | | ?????????????????????????????????????????????????? | | ?????????????????????????????????????????????????? | | ?????????????????????????????????????????????????? | | ?????????????????????????????????????????????????? | | ?????????????????????????????????????????????????? | | ?????????????????????????????????????????????????? | | ?????????????????????????????????????????????????? | | ?????????????????????????????????????????????????? | | ?????????????????????????????????????????????????? | +----------------------------------------------------+ Best States ------------- Heat Dissipation 52 Energy Generation 12 Energy Capacity 265 Matter Stores 300 Matter Capacity 300 Sight Range 16 Terrain Scan Density 10 Armor Coverage 225 Evasion (%) 59 Item Schematics ----------------- EM Shotgun | -9/Materials | Scanalyzed Med. Armor Plating | -9/Materials | Scanalyzed Reaction Control System | -9/Materials | Scanalyzed Robot Schematics ------------------ None Fabricated ------------ Nothing Alien Tech Used ----------------- None Achievements -------------- None Challenges ------------ None Game ------ Seed FortressAntigravFilter Manual? 0 Play Time 00:22:51 Cumulative 17.9 hours Start 2024.07.10 @ 21:11:46 End 2024.07.10 @ 21:34:34 Sessions 1 Manual Loads 0 Difficulty Rogue Special Mode None Game No. 24 Rogue 24 Adventurer 0 Explorer 0 Win Type - Total 0 Types 0/0/0/0/0/0/0/0/0 Lore% 14 Gallery% 19 Achievement% 16 Wizard Run 0 Options --------- Layout 1 ASCII 0 Keyboard 0 Movement Mouse Keybinds 0 Fullscreen 1 Font 24/Terminus Map View 50x35 Zoom Use 0% Tactical HUD 0 Map Filters NONE Filters NONE Steam 1 RUN: 2bb281b2-f03a-4bc0-99d7-d9bcfaffbcd8